bitfinex-derivatives/quotes_SOLF0:USTF0_20230902
["timestamp","ask_amount","ask_price","bid_price","bid_amount"]
[1693640452879,21.2394,19.562,19.561,0.18473737]
[1693640462589,21.2394,19.562,19.557,9.3909879]
[1693640463385,36.5194,19.562,19.557,9.3909879]
[1693640463585,21.2394,19.562,19.557,9.3909879]
[1693640464983,21.2394,19.562,19.559,125.47]
[1693640465289,0.06156708,19.565,19.561,110.13]
[1693640465489,0.06156708,19.565,19.563,15.34]
[1693640470288,0.06156708,19.565,19.561,110.25315878]
[1693640471993,0.06156708,19.565,19.563,15.34]
[1693640477403,21.8176,19.567,19.563,15.34]
[1693640478512,0.06156708,19.565,19.563,15.34]
[1693640516445,0.06156708,19.565,19.562,110.13]
[1693640601911,0.06156708,19.565,19.563,110.13]
[1693640612427,21.8176,19.567,19.563,110.13]
[1693640613527,0.06156708,19.565,19.563,110.13]
[1693640655360,0.06156708,19.565,19.561,0.12315878]
[1693640656563,125.4,19.562,19.561,0.12315878]
[1693640659464,110.13,19.562,19.561,0.12315878]
[1693640661558,125.4,19.562,19.561,0.12315878]
[1693640661962,15.27,19.562,19.561,0.12315878]
[1693640672474,15.27,19.562,19.557,0.18477514]
[1693640672475,15.28,19.562,19.556,110.13]
[1693640672674,21.0086,19.561,19.556,110.13]
[1693640675675,21.0086,19.561,19.557,0.18477514]
[1693640697894,21.0086,19.561,19.559,15.34]
[1693640698195,21.0086,19.561,19.559,15.79454546]
[1693640702198,0.06156708,19.565,19.56,110.13]
[1693640702395,0.06156708,19.565,19.564,110.13]
[1693640703696,0.06156708,19.565,19.564,125.47]
[1693640711302,0.06156708,19.565,19.564,110.13]
[1693640717508,35.2332,19.57,19.564,110.13]
[1693640728917,19.9532,19.57,19.565,110.13]
[1693640729220,110.13,19.569,19.562,110.13]
[1693640731920,110.13,19.58,19.568,110.13]
[1693640732121,110.13,19.58,19.573,110.13]
[1693640733226,152.66486553,19.583,19.576,110.13]
[1693640737127,20.6704,19.582,19.576,110.13]
[1693640737327,42.53486553,19.583,19.579,110.13]
[1693640737622,110.13,19.589,19.582,110.13]
[1693640737826,20.6704,19.585,19.582,110.13]
[1693640739026,20.6704,19.585,19.584,110.13]
[1693640739823,110.13,19.592,19.584,110.13]
[1693640740127,21.5761,19.591,19.584,110.13]
[1693640742023,131.7061,19.591,19.584,110.13]
[1693640748132,131.7061,19.591,19.574,40.92244897]
[1693640748133,15.27,19.589,19.567,15.78454546]
[1693640748433,15.27,19.584,19.578,110.13]
[1693640751333,110.13,19.585,19.579,15.33]
[1693640753229,20.6211,19.584,19.579,15.33]
[1693640755535,35.8811,19.584,19.578,110.13]
[1693640757833,110.13,19.583,19.576,110.13]
[1693640765946,110.13,19.583,19.58,0.12303929]
[1693640766847,110.13,19.583,19.576,110.31459587]
[1693640771946,110.13,19.581,19.576,0.18459587]
[1693640777450,110.13,19.581,19.574,110.13]
[1693640778562,0.06151991,19.58,19.574,110.13]
[1693640780662,110.13,19.578,19.571,110.13]
[1693640780863,110.13,19.578,19.572,0.18463357]
[1693640781966,15.26,19.576,19.572,0.18463357]
[1693640789468,20.4198,19.577,19.573,125.46]
[1693640790371,110.19151991,19.58,19.573,125.46]
[1693640792071,110.19151991,19.58,19.574,110.13]
[1693640798777,0.06151991,19.58,19.577,110.13]
[1693640798972,0.06151991,19.58,19.579,110.13]
[1693640799178,149.7120924,19.587,19.579,110.13]
[1693640799377,149.7120924,19.587,19.582,15.33]
[1693640802072,39.5820924,19.587,19.582,15.33]
[1693640807587,15.27,19.586,19.581,110.13]
[1693640807785,110.13,19.585,19.579,15.33]
[1693640807989,110.13,19.585,19.579,15.78454546]
[1693640808485,110.13,19.585,19.58,0.06151985]
[1693640812090,125.4,19.586,19.58,0.06151985]
[1693640815896,21.7691,19.585,19.58,0.06151985]
[1693640822695,21.7691,19.585,19.581,15.32]
[1693640829306,21.7691,19.585,19.58,0.06151985]
[1693640832006,21.7691,19.585,19.58,110.19151985]
[1693640833412,15.26,19.584,19.58,110.19151985]
[1693640837316,21.7691,19.585,19.581,15.32]
[1693640847515,21.7691,19.585,19.58,0.06151985]
[1693640848013,15.26,19.584,19.58,0.06151985]
[1693640849917,110.13,19.583,19.576,15.44306432]
[1693640872023,110.13,19.584,19.576,110.25306432]
[1693640874926,125.39,19.584,19.576,110.25306432]
[1693640882034,110.13,19.582,19.576,15.44306432]
[1693640903348,15.26,19.581,19.576,0.12306432]
[1693640911459,15.26,19.581,19.575,110.13]
[1693640911958,110.13,19.58,19.573,110.13]
[1693640912560,110.19151986,19.58,19.573,110.13]
[1693640913662,110.19151986,19.58,19.576,0.12306432]
[1693640914062,21.2483,19.579,19.576,0.12306432]
[1693641001542,21.2483,19.579,19.574,110.13]
[1693641002941,21.2483,19.579,19.573,110.13]
[1693641003744,21.2483,19.579,19.576,0.12306432]
[1693641026569,125.39,19.578,19.572,0.18463341]
[1693641031959,15.26,19.576,19.572,0.18463341]
[1693641035067,110.13,19.577,19.572,0.18463341]
[1693641038066,15.26,19.576,19.572,0.18463341]
[1693641042072,110.13,19.576,19.572,0.18463341]
[1693641043070,15.26,19.572,19.568,0.24622715]
[1693641049077,37.0005,19.572,19.568,0.24622715]
[1693641052085,110.13,19.571,19.568,0.24622715]
[1693641062093,131.8705,19.572,19.568,0.24622715]
[1693641062693,131.8705,19.572,19.565,110.13]
[1693641063692,131.93204499,19.572,19.565,110.13]
[1693641072189,110.13,19.571,19.565,15.33]
[1693641095225,0.06154499,19.572,19.568,110.13]
[1693641095523,0.06154499,19.572,19.57,110.13]
[1693641101924,0.06154499,19.572,19.571,125.46]
[1693641102728,130.2689,19.579,19.572,15.33]
[1693641103026,130.2689,19.579,19.572,110.13]
[1693641111933,20.1389,19.579,19.572,110.13]
[1693641112132,20.1389,19.579,19.565,15.33]
[1693641112133,15.27,19.576,19.57,110.13]
[1693641112333,147.24175985,19.575,19.568,110.13]
[1693641115136,110.13,19.575,19.568,110.13]
[1693641117234,110.13,19.575,19.568,150.13817159]
[1693641119936,110.13,19.572,19.566,0.45454546]
[1693641120137,125.4,19.572,19.565,110.13]
[1693641120336,125.4,19.572,19.556,0.45454546]
[1693641120539,21.299,19.571,19.566,110.13]
[1693641121339,125.4,19.57,19.563,110.13]
[1693641122034,110.13,19.569,19.561,110.13]
[1693641129037,15.27,19.57,19.564,110.13]
[1693641151954,15.27,19.57,19.563,110.13]
[1693641161959,125.4,19.57,19.563,110.13]
[1693641191989,15.27,19.57,19.563,110.13]
[1693641222013,110.13,19.569,19.562,110.13]
[1693641240829,15.28,19.566,19.559,110.13]
[1693641244327,110.13,19.564,19.557,110.13]
[1693641244524,153.24084574,19.564,19.557,110.13]
[1693641246726,110.13,19.561,19.554,15.34]
[1693641255142,110.13,19.561,19.553,110.13]
[1693641272048,15.28,19.558,19.552,110.13]
[1693641272850,110.13,19.559,19.552,110.13]
[1693641273148,110.13,19.562,19.556,15.34]
[1693641293264,110.13,19.562,19.555,110.13]
[1693641297064,125.41,19.562,19.555,110.13]
[1693641301966,110.13,19.56,19.554,15.34]
[1693641311972,110.13,19.562,19.556,15.34]
[1693641380132,110.13,19.562,19.555,110.13]
[1693641392038,110.13,19.562,19.55,41.60736196]
[1693641392039,110.13,19.561,19.554,110.13]
[1693641392239,147.50170541,19.561,19.554,110.13]
[1693641406948,110.13,19.559,19.551,110.13]
[1693641407342,20.3122,19.558,19.551,110.13]
[1693641408844,0.75869387,19.556,19.553,0.8323839]
[1693641412154,110.88869387,19.556,19.553,0.8323839]
[1693641415761,15.28,19.555,19.553,0.8323839]
[1693641418263,110.88869387,19.556,19.553,0.8323839]
[1693641432076,110.13,19.555,19.553,0.8323839]
[1693641436677,125.41,19.555,19.553,0.8323839]
[1693641437672,110.13,19.555,19.553,0.8323839]
[1693641443981,110.13,19.555,19.554,15.34]
[1693641444677,0.75869387,19.556,19.554,15.34]
[1693641445080,0.75869387,19.556,19.554,125.47]
[1693641452185,0.75869387,19.556,19.554,15.34]
[1693641455888,110.13,19.563,19.556,15.34]
[1693641456090,110.13,19.563,19.556,110.13]
[1693641462091,132.0777,19.564,19.558,15.34]
[1693641462987,132.0777,19.564,19.558,15.79454546]
[1693641469799,132.0777,19.564,19.558,15.34]
[1693641479406,21.9477,19.564,19.561,15.33]
[1693641480409,21.9477,19.564,19.562,110.13]
[1693641481905,21.9477,19.564,19.558,15.33]
[1693641482111,21.9477,19.564,19.561,110.13]
[1693641505722,132.0777,19.564,19.557,110.13]
[1693641505927,176.13264542,19.564,19.557,110.13]
[1693641512033,15.28,19.562,19.556,110.13]
[1693641528344,15.28,19.562,19.553,15.34]
[1693641528546,15.28,19.562,19.556,110.13]
[1693641536346,110.13,19.563,19.556,110.13]
[1693641536542,66.00264542,19.564,19.559,110.13]
[1693641537945,44.05494542,19.564,19.553,515.34]
[1693641538150,274.80431569,19.579,19.553,515.34]
[1693641538151,110.13,19.568,19.561,110.13]
[1693641542057,37.74364407,19.569,19.563,110.13]
[1693641543754,37.74364407,19.569,19.564,15.34]
[1693641544756,147.87364407,19.569,19.564,15.34]
[1693641552763,110.13,19.569,19.564,15.34]
[1693641567477,110.13,19.569,19.563,110.13]
[1693641574786,110.13,19.57,19.564,110.13]
[1693641600605,20.6231,19.571,19.558,41.86816554]
[1693641600800,20.6231,19.571,19.554,0.45454546]
[1693641601608,20.6231,19.571,19.565,0.73104869]
[1693641604811,0.83927315,19.57,19.565,0.73104869]
[1693641605211,0.83927315,19.57,19.566,15.33]
[1693641606313,0.22727272,19.588,19.566,15.33]
[1693641606514,20.0071,19.587,19.566,15.33]
[1693641607013,575.0,19.6,19.574,15.33]
[1693641607014,15.27,19.595,19.574,15.33]
[1693641607210,15.27,19.595,19.574,141.47596292]
[1693641607413,15.27,19.595,19.574,15.33]
[1693641607613,35.8597,19.595,19.574,15.33]
[1693641610814,35.8597,19.595,19.575,0.68181818]
[1693641611709,35.8597,19.595,19.576,9.38131297]
[1693641611914,35.8597,19.595,19.578,15.33]
[1693641612111,35.8597,19.595,19.579,0.68181818]
[1693641612310,35.8597,19.595,19.58,0.68181818]
[1693641612506,35.8597,19.595,19.584,15.33]
[1693641612710,20.5897,19.595,19.585,0.68181818]
[1693641613714,35.8597,19.595,19.585,0.68181818]
[1693641614810,35.8597,19.595,19.575,0.68181818]
[1693641616815,35.8597,19.595,19.576,9.3788982]
[1693641617112,35.8597,19.595,19.578,15.33]
[1693641617318,35.8597,19.595,19.579,0.68181818]
[1693641617513,35.8597,19.595,19.58,0.68181818]
[1693641617715,35.8597,19.595,19.581,0.68181818]
[1693641617911,35.8597,19.595,19.582,0.68181818]
[1693641618115,35.8597,19.595,19.575,0.68181818]
[1693641618314,35.8597,19.595,19.576,9.38075338]
[1693641618514,35.8597,19.595,19.577,0.68181818]
[1693641618716,20.5897,19.595,19.578,9.38075338]
[1693641619012,20.5897,19.595,19.579,0.68181818]
[1693641619512,20.5897,19.595,19.575,0.68181818]
[1693641619713,0.06149467,19.588,19.576,9.38082766]
[1693641620013,0.06149467,19.588,19.577,0.68181818]
[1693641620314,0.06149467,19.588,19.578,9.38082766]
[1693641620511,0.06149467,19.588,19.579,0.68181818]
[1693641620810,0.06149467,19.588,19.584,0.12301394]
[1693641622119,0.06149467,19.588,19.581,0.68181818]
[1693641623422,0.06149467,19.588,19.576,0.24612635]
[1693641627320,42.02196583,19.587,19.576,0.24612635]
[1693641627512,0.45454546,19.586,19.576,0.24612635]
[1693641628617,20.97384546,19.586,19.576,0.24612635]
[1693641632927,20.97384546,19.586,19.569,41.6171516]
[1693641633121,20.97384546,19.586,19.571,15.33]
[1693641633318,20.97384546,19.586,19.564,55.45659519]
[1693641633624,20.97384546,19.586,19.566,15.33]
[1693641633924,0.06151979,19.58,19.568,15.33]
[1693641634125,0.06151979,19.58,19.569,9.38450139]
[1693641634427,0.06151979,19.58,19.571,15.33]
[1693641634726,0.06151979,19.58,19.564,15.33]
[1693641634925,0.06151979,19.58,19.566,15.33]
[1693641635123,0.06151979,19.58,19.568,15.33]
[1693641635326,0.06151979,19.58,19.569,9.3845199]
[1693641635523,0.06151979,19.58,19.571,15.33]
[1693641635722,0.06151979,19.58,19.564,15.33]
[1693641635924,0.06151979,19.58,19.566,15.33]
[1693641636125,0.06151979,19.58,19.576,0.12306417]
[1693641641534,0.06151979,19.58,19.572,0.1846332]
[1693641641937,0.45454546,19.579,19.568,0.24622686]
[1693641647430,0.45454546,19.579,19.553,654.0]
[1693641647431,0.45454546,19.579,19.566,15.33]
[1693641647638,0.45454546,19.578,19.564,15.33]
[1693641647935,0.45454546,19.577,19.566,15.33]
[1693641648239,0.45454546,19.58,19.553,654.0]
[1693641648542,0.06154492,19.572,19.554,34.95663958]
[1693641648840,0.06154492,19.572,19.556,15.33]
[1693641649135,0.06154492,19.572,19.558,15.33]
[1693641649441,0.06154492,19.572,19.559,9.38642958]
[1693641649636,0.06154492,19.572,19.561,15.33]
[1693641649941,0.06154492,19.572,19.56,9.38642958]
[1693641649942,0.45454546,19.599,19.573,500.0]
[1693641650140,0.45454546,19.599,19.574,9.38642958]
[1693641652243,15.27,19.597,19.574,34.93050958]
[1693641652445,15.27,19.597,19.575,9.38642958]
[1693641652446,15.72454546,19.597,19.575,9.38642958]
[1693641660244,15.27,19.597,19.583,15.32]
[1693641660548,15.27,19.597,19.576,0.22727272]
[1693641660744,15.27,19.597,19.583,15.32]
[1693641662946,15.27,19.597,19.576,0.22727272]
[1693641663142,15.27,19.597,19.576,9.60598435]
[1693641663343,15.27,19.597,19.583,15.32]
[1693641663547,15.27,19.597,19.578,15.32]
[1693641663739,15.27,19.597,19.579,9.37870622]
[1693641663946,15.26,19.595,19.588,0.71966762]
[1693641664248,0.45454546,19.595,19.588,0.71966762]
[1693641664548,15.26,19.595,19.588,0.71966762]
[1693641664745,15.26,19.597,19.588,0.71966762]
[1693641665045,0.78600873,19.589,19.588,0.71966762]
[1693641665243,0.78600873,19.589,19.573,55.93632653]
[1693641665438,0.78600873,19.589,19.574,9.3806381]
[1693641666249,26.45390696,19.591,19.574,9.3806381]
[1693641672653,15.26,19.589,19.574,9.3806381]
[1693641676856,21.7554,19.59,19.574,9.3806381]
[1693641677857,15.26,19.589,19.574,9.3806381]
[1693641678455,0.0614946,19.588,19.574,9.3806381]
[1693641680859,0.0614946,19.588,19.584,0.12301379]
[1693641694268,0.0614946,19.588,19.584,0.93371803]
[1693641698063,15.26,19.605,19.584,0.93371803]
[1693641699069,15.26,19.605,19.584,0.12301379]
[1693641703073,15.26,19.605,19.584,9.50154348]
[1693641703274,22.19634546,19.604,19.584,9.50154348]
[1693641703776,15.26,19.602,19.584,9.50154348]
[1693641708579,15.26,19.602,19.584,50.30154347]
[1693641708780,15.26,19.602,19.584,40.92301378]
[1693641713582,21.7418,19.604,19.584,195.1502865]
[1693641713789,21.7418,19.604,19.592,15.32]
[1693641713982,0.45454546,19.613,19.592,15.32]
[1693641714188,21.5413,19.603,19.592,15.32]
[1693641714388,0.45454546,19.613,19.584,194.92301378]
[1693641714686,15.26,19.611,19.592,15.32]
[1693641715682,15.26,19.611,19.591,500.0]
[1693641715683,15.26,19.611,19.584,194.92301378]
[1693641715882,15.26,19.611,19.585,9.37507409]
[1693641716084,15.26,19.611,19.589,15.32]
[1693641716289,15.26,19.611,19.586,25.52843]
[1693641716290,15.26,19.611,19.592,15.32]
[1693641716689,15.26,19.611,19.587,15.32]
[1693641716890,15.26,19.611,19.589,15.32]
[1693641717092,15.26,19.611,19.591,15.32]
[1693641717390,15.26,19.611,19.591,500.0]
[1693641718690,15.26,19.611,19.587,15.32]
[1693641718886,15.26,19.611,19.589,15.32]
[1693641719090,15.26,19.611,19.591,15.32]
[1693641721690,15.26,19.611,19.587,25.52713]
[1693641721886,15.26,19.611,19.589,15.3]
[1693641722090,15.26,19.611,19.591,15.3]
[1693641728391,15.26,19.611,19.592,9.37429033]
[1693641729292,15.26,19.611,19.593,25.51931]
[1693641729492,15.26,19.611,19.594,9.37429033]
[1693641738700,15.26,19.611,19.594,34.89230033]
[1693641739000,15.26,19.611,19.596,15.3]
[1693641739200,15.26,19.611,19.597,9.37429033]
[1693641739402,15.26,19.611,19.599,15.3]
[1693641739603,15.26,19.611,19.594,25.51801]
[1693641739803,15.26,19.611,19.596,15.3]
[1693641739997,15.26,19.611,19.597,9.37081966]
[1693641740197,15.26,19.611,19.594,25.51801]
[1693641740198,15.26,19.611,19.599,15.3]
[1693641740397,15.26,19.611,19.594,25.51801]
[1693641740597,15.26,19.611,19.596,15.3]
[1693641740803,15.26,19.611,19.597,9.37084019]
[1693641741103,15.26,19.611,19.599,15.3]
[1693641741300,15.26,19.611,19.594,67.20200591]
[1693641741501,15.26,19.611,19.596,15.3]
[1693641741803,15.26,19.611,19.597,9.37086546]
[1693641742001,15.26,19.611,19.599,15.3]
[1693641742201,15.26,19.611,19.594,67.20200591]
[1693641742503,15.26,19.611,19.596,15.3]
[1693641742694,15.26,19.611,19.597,9.37088771]
[1693641742897,15.26,19.611,19.596,15.3]
[1693641743098,15.26,19.611,19.597,9.37088771]
[1693641743298,15.26,19.611,19.599,15.3]
[1693641743501,15.26,19.611,19.594,67.20200591]
[1693641743701,15.26,19.611,19.596,15.3]
[1693641743903,15.26,19.611,19.597,9.37093792]
[1693641744102,15.26,19.611,19.594,67.20200591]
[1693641744297,15.26,19.611,19.596,15.3]
[1693641744504,15.26,19.611,19.597,9.37097899]
[1693641744703,15.26,19.611,19.594,67.20200591]
[1693641744906,15.26,19.611,19.596,15.3]
[1693641745106,15.26,19.611,19.597,9.37102097]
[1693641745301,15.26,19.611,19.594,67.20200591]
[1693641745607,15.26,19.611,19.596,15.3]
[1693641745803,15.26,19.611,19.597,9.37153708]
[1693641746010,15.26,19.611,19.594,67.20200591]
[1693641746209,15.26,19.611,19.596,15.3]
[1693641746409,15.26,19.611,19.591,15.3]
[1693641746607,15.26,19.611,19.592,9.37141117]
[1693641747109,15.26,19.611,19.593,25.51931]
[1693641747308,15.26,19.611,19.594,9.37141117]
[1693641749208,15.26,19.611,19.594,34.88942117]
[1693641749409,15.26,19.611,19.596,15.3]
[1693641749604,15.26,19.611,19.597,9.37141117]
[1693641749805,15.26,19.611,19.594,25.51801]
[1693641750007,15.26,19.611,19.596,15.3]
[1693641750205,15.26,19.611,19.597,9.37080402]
[1693641750406,15.26,19.611,19.599,15.3]
[1693641750610,15.26,19.611,19.594,25.51801]
[1693641750909,15.26,19.611,19.596,15.3]
[1693641751105,15.26,19.611,19.597,9.3708134]
[1693641751306,15.26,19.611,19.599,15.3]
[1693641751506,15.26,19.611,19.594,25.51801]
[1693641751806,15.26,19.611,19.596,15.3]
[1693641752107,15.26,19.611,19.597,9.37084082]
[1693641752313,15.26,19.611,19.599,15.3]
[1693641752511,15.26,19.611,19.594,25.51801]
[1693641752814,15.26,19.611,19.596,15.3]
[1693641753009,15.26,19.611,19.597,9.37085907]
[1693641754911,21.5413,19.612,19.597,9.37085907]
[1693641755411,15.24,19.611,19.599,15.3]
[1693641755610,15.24,19.611,19.591,15.3]
[1693641755912,15.24,19.611,19.592,9.37088033]
[1693641756312,15.24,19.611,19.593,25.51931]
[1693641756514,21.5413,19.612,19.594,9.37088033]
[1693641756711,21.5413,19.612,19.596,15.3]
[1693641756911,21.5413,19.612,19.597,9.37088033]
[1693641758211,15.24,19.62,19.597,9.37088033]
[1693641758417,15.24,19.62,19.599,515.3]
[1693641758716,15.24,19.62,19.601,15.3]
[1693641758913,15.24,19.62,19.603,15.3]
[1693641759112,55.97431922,19.627,19.601,25.5089]
[1693641759417,15.24,19.65,19.619,154.0]
[1693641759617,21.3086,19.651,19.619,154.0]
[1693641759618,21.3086,19.639,19.62,9.36605758]
[1693641759812,15.24,19.651,19.62,9.36605758]
[1693641760218,21.3086,19.65,19.62,9.36605758]
[1693641760415,65.55468659,19.65,19.622,15.3]
[1693641760711,65.55468659,19.65,19.609,282.3108863]
[1693641760712,65.55468659,19.65,19.624,15.3]
[1693641761019,65.55468659,19.65,19.626,15.3]
[1693641761222,65.55468659,19.65,19.619,169.3]
[1693641761415,65.55468659,19.65,19.62,9.35741521]
[1693641761816,65.55468659,19.65,19.622,15.3]
[1693641762015,65.55468659,19.65,19.624,15.3]
[1693641762220,65.55468659,19.65,19.626,15.3]
[1693641762420,65.55468659,19.65,19.624,25.93354546]
[1693641762621,65.55468659,19.65,19.626,15.3]
[1693641762819,15.24,19.642,19.616,15.3]
[1693641763020,15.46727272,19.642,19.617,24.65985731]
[1693641763220,15.46727272,19.642,19.618,9.35985731]
[1693641765025,15.46727272,19.642,19.618,34.84664731]
[1693641765229,15.46727272,19.642,19.619,9.35985731]
[1693641767926,15.24,19.642,19.619,9.35985731]
[1693641768127,0.22727272,19.649,19.619,9.35985731]
[1693641768327,105.76253171,19.65,19.62,25.93873546]
[1693641768629,105.76253171,19.65,19.622,15.3]
[1693641768834,105.76253171,19.65,19.624,15.3]
[1693641769125,105.76253171,19.65,19.626,15.3]
[1693641770731,105.76253171,19.65,19.618,0.45454546]
[1693641770932,105.76253171,19.65,19.628,0.06136879]
[1693641771623,15.24,19.642,19.624,0.12276213]
[1693641772727,15.24,19.642,19.62,0.18418004]
[1693641772932,40.69565,19.642,19.62,0.18418004]
[1693641773131,40.69565,19.642,19.617,55.58527762]
[1693641774033,15.24,19.642,19.617,55.58527762]
[1693641775734,15.24,19.642,19.618,9.36035581]
[1693641776832,0.22727272,19.649,19.618,9.36035581]
[1693641777032,32.2080898,19.649,19.618,9.36035581]
[1693641777236,15.23,19.642,19.618,9.36035581]
[1693641778226,21.7334,19.641,19.618,9.36035581]
[1693641778737,21.7334,19.641,19.617,56.03982308]
[1693641781533,21.7334,19.641,19.617,40.73982308]
[1693641782039,15.23,19.639,19.617,40.73982308]
[1693641782534,25.45954,19.639,19.617,40.73982308]
[1693641782730,25.45954,19.639,19.617,40.28527762]
[1693641782936,25.45954,19.639,19.613,40.98624553]
[1693641782937,15.23,19.632,19.613,40.98624553]
[1693641783134,15.23,19.632,19.601,15.29]
[1693641783338,15.23,19.632,19.597,654.0]
[1693641783339,20.7014,19.631,19.603,15.29]
[1693641783632,0.0613938,19.62,19.604,9.81794898]
[1693641783829,0.0613938,19.62,19.605,0.45454546]
[1693641784038,0.0613938,19.62,19.605,9.81794898]
[1693641784337,0.0613938,19.62,19.606,9.81794898]
[1693641784636,0.0613938,19.62,19.608,15.29]
[1693641784838,0.0613938,19.62,19.61,15.29]
[1693641785039,0.0613938,19.62,19.612,15.29]
[1693641785240,0.0613938,19.62,19.599,15.29]
[1693641785444,0.0613938,19.62,19.601,15.29]
[1693641785737,0.0613938,19.62,19.616,0.12281215]
[1693641797542,48.63917816,19.631,19.611,40.98217013]
[1693641797838,48.63917816,19.631,19.612,9.36380618]
[1693641798041,48.63917816,19.631,19.608,15.29]
[1693641798246,48.63917816,19.631,19.61,15.29]
[1693641798445,48.63917816,19.631,19.611,9.36383232]
[1693641798647,0.0613938,19.62,19.612,9.36383232]
[1693641798841,0.0613938,19.62,19.604,0.45454546]
[1693641799043,0.0613938,19.62,19.605,0.45454546]
[1693641799344,0.0613938,19.62,19.606,0.45454546]
[1693641799646,0.0613938,19.62,19.608,15.29]
[1693641799844,0.0613938,19.62,19.61,15.29]
[1693641800046,0.0613938,19.62,19.611,9.36381475]
[1693641800341,0.0613938,19.62,19.601,15.74454546]
[1693641800546,0.0613938,19.62,19.603,15.29]
[1693641800847,0.0613938,19.62,19.616,0.12281215]
[1693641811558,0.0613938,19.62,19.612,0.18425509]
[1693641818867,0.0613938,19.62,19.608,0.24572262]
[1693641828181,41.61491061,19.62,19.608,0.24572262]
[1693641843797,41.55351681,19.62,19.602,0.45454546]
[1693641843995,20.6584,19.622,19.599,15.3]
[1693641844193,46.14,19.622,19.601,15.3]
[1693641844494,46.14,19.622,19.602,0.45454546]
[1693641844692,46.14,19.622,19.592,9.82476626]
[1693641844892,15.24,19.611,19.593,0.45454546]
[1693641845295,19.7613,19.61,19.593,0.45454546]
[1693641859607,15.24,19.607,19.593,0.45454546]
[1693641883418,15.24,19.607,19.593,9.82476626]
[1693641883608,15.24,19.607,19.594,9.82476626]
[1693641883814,15.24,19.607,19.596,15.31]
[1693641884120,15.24,19.607,19.591,0.45454546]
[1693641884320,15.24,19.607,19.591,15.31]
[1693641884619,15.24,19.607,19.592,9.37266167]
[1693641884922,15.24,19.607,19.593,9.82720713]
[1693641885120,15.24,19.607,19.594,9.82720713]
[1693641885422,15.24,19.607,19.595,9.37266167]
[1693641885620,15.24,19.607,19.583,0.45454546]
[1693641885919,15.24,19.607,19.583,286.15273653]
[1693641886114,15.24,19.607,19.584,9.82718085]
[1693641886311,15.24,19.607,19.585,0.45454546]
[1693641889823,15.24,19.607,19.585,9.82718085]
[1693641890022,15.24,19.607,19.587,15.31]
[1693641890221,15.24,19.607,19.589,15.31]
[1693641890416,15.24,19.607,19.588,9.82718085]
[1693641890417,15.24,19.607,19.591,15.31]
[1693641890618,15.24,19.607,19.592,9.37263539]
[1693641890924,15.24,19.607,19.593,9.37263539]
[1693641891120,15.24,19.607,19.594,9.37263539]
[1693641891321,15.24,19.607,19.583,0.45454546]
[1693641891521,15.24,19.607,19.583,9.8278234]
[1693641891824,15.24,19.607,19.584,0.45454546]
[1693641906145,15.24,19.607,19.584,41.31576994]
[1693641906347,15.24,19.607,19.585,9.8278234]
[1693641906645,15.24,19.607,19.587,15.31]
[1693641906846,15.24,19.607,19.589,15.31]
[1693641907045,15.24,19.607,19.591,15.31]
[1693641907345,15.24,19.607,19.592,9.37327794]
[1693641907544,15.24,19.607,19.593,9.37327794]
[1693641907745,15.24,19.607,19.594,9.37327794]